[Event "SVK Extraliga 2017-18"]
[Site "Slovakia"]
[Date "2017.12.10"]
[Round "6"]
[White "Szucs, Vladimir"]
[Black "Franzen, Jozef"]
[Result "1/2-1/2"]
[ECO "E91"]
[WhiteElo "2114"]
[BlackElo "2261"]
[Annotator "NA"]
[PlyCount "77"]
[EventDate "2017.??.??"]
[EventType "team-tourn"]
[EventCountry "SVK"]
[SourceTitle "playchess.com"]
[Source "ChessBase"]
[SourceQuality "1"]
[TimeControl "40/5400+30:1800+30"]

1. d4 {[%emt 0:00:00]} Nf6 {[%emt 0:00:01]} 2. c4 {[%emt 0:00:00]} g6 {[%emt 0:00:19]} 3. Nc3 {[%emt 0:00:00]} Bg7 {[%emt 0:00:02]} 4. e4 {[%emt 0:00:07]} d6 {[%emt 0:00:02]} 5. Nf3 {[%emt 0:00:11]} O-O {[%emt 0:00:10]} 6. Be2 {[%emt 0:00:17]} Nbd7 {[%emt 0:00:31]} 7. O-O {[%emt 0:00:37]} e5 {[%emt 0:00:11]} 8. dxe5 {[%emt 0:00:32]} dxe5 {[%emt 0:00:12]} 9. Qc2 {[%emt 0:00:09]} c6 {[%emt 0:00:24]} 10. Rd1 {[%emt 0:01:45]} Qe7 {[%emt 0:00:34]} 11. Be3 {[%emt 0:01:13]} Nh5 {[%emt 0:04:20]} 12. Rab1 {[%emt 0:06:41]} Nf4 {[%emt 0:06:26]} 13. Bf1 {[%emt 0:00:55]} Re8 {[%emt 0:03:04]} 14. b4 {[%emt 0:02:49]} Qf6 {[%emt 0:06:58]} 15. g3 {[%emt 0:03:56]} Ne6 {[%emt 0:00:24]} 16. Be2 {[%emt 0:00:28]} Bf8 {[%emt 0:05:33]} 17. a3 {[%emt 0:05:37]} h6 {[%emt 0:04:20]} 18. Kg2 {[%emt 0:05:11]} Kh7 {[%emt 0:00:21]} 19. h4 {[%emt 0:01:27]} h5 {[%emt 0:04:00]} 20. Rd2 {[%emt 0:04:06]} Be7 {[%emt 0:06:41]} 21. Rbd1 {[%emt 0:04:55]} Ndf8 {[%emt 0:01:20]} 22. Qb2 {[%emt 0:03:22]} Qg7 {[%emt 0:00:58]} 23. c5 {[%emt 0:07:39]} f6 {[%emt 0:02:52]} 24. Bc4 {[%emt 0:01:56]} Nc7 {[%emt 0:04:28]} 25. Ne2 {[%emt 0:09:00]} Bg4 {[%emt 0:01:04]} 26. Ne1 {[%emt 0:03:32]} Red8 {[%emt 0:01:17]} 27. Rxd8 {[%emt 0:01:37]} Rxd8 {[%emt 0:00:04]} 28. Rxd8 {[%emt 0:00:05]} Bxd8 {[%emt 0:00:04]} 29. Qd2 {[%emt 0:00:26]} Qd7 {[%emt 0:02:21]} 30. Qxd7+ {[%emt 0:00:10]} Nxd7 {[%emt 0:01:46]} 31. Nf3 {[%emt 0:03:21]} Kg7 {[%emt 0:02:54]} 32. Nd2 {[%emt 0:00:30]} Kf8 {[%emt 0:02:33]} 33. f3 {[%emt 0:00:41]} Be6 {[%emt 0:00:11]} 34. Kf2 {[%emt 0:02:32]} Ke7 {[%emt 0:00:17]} 35. Nc1 {[%emt 0:01:22]} Nb5 {[%emt 0:02:35]} 36. Bxe6 {[%emt 0:07:49]} Kxe6 {[%emt 0:00:04]} 37. Nc4 {[%emt 0:00:14]} Bc7 {[%emt 0:02:18]} 38. Nb3 {[%emt 0:00:42]} b6 {[%emt 0:05:24]} 39. Ke2 {[%emt 0:04:02]} 1/2-1/2

[Event "SVK Extraliga 2017-18"]
[Site "Slovakia"]
[Date "2017.12.10"]
[Round "6"]
[White "Hecko, Dusan"]
[Black "Magat, Jozef"]
[Result "0-1"]
[ECO "B17"]
[WhiteElo "2092"]
[BlackElo "2110"]
[Annotator "NA"]
[PlyCount "104"]
[EventDate "2017.??.??"]
[EventType "team-tourn"]
[EventCountry "SVK"]
[SourceTitle "playchess.com"]
[Source "ChessBase"]
[SourceQuality "1"]
[TimeControl "40/5400+30:1800+30"]

1. e4 {[%emt 0:00:23]} c6 {[%emt 0:00:14]} 2. d4 {[%emt 0:00:34]} d5 {[%emt 0:00:05]} 3. Nc3 {[%emt 0:01:39]} dxe4 {[%emt 0:02:21]} 4. Nxe4 {[%emt 0:00:04]} Nd7 {[%emt 0:01:59]} 5. Nf3 {[%emt 0:03:09]} Ngf6 {[%emt 0:01:48]} 6. Ng3 {[%emt 0:05:54]} Qc7 {[%emt 0:01:35]} 7. Bd3 {[%emt 0:01:16]} e6 {[%emt 0:00:43]} 8. O-O {[%emt 0:02:08]} Bd6 {[%emt 0:00:37]} 9. Re1 {[%emt 0:01:15]} O-O {[%emt 0:02:36]} 10. Qe2 {[%emt 0:02:31]} Re8 {[%emt 0:07:22]} 11. Ne5 {[%emt 0:04:44]} Nf8 {[%emt 0:04:24]} 12. Bd2 {[%emt 0:09:03]} b6 {[%emt 0:04:46]} 13. Rad1 {[%emt 0:04:29]} Bb7 {[%emt 0:02:50]} 14. c4 {[%emt 0:04:51]} c5 {[%emt 0:04:27]} 15. Bc3 {[%emt 0:06:03]} Rad8 {[%emt 0:02:02]} 16. dxc5 {[%emt 0:03:31]} bxc5 {[%emt 0:04:23]} 17. Rd2 {[%emt 0:04:51]} Ng6 {[%emt 0:07:36]} 18. Bxg6 {[%emt 0:07:08]} hxg6 {[%emt 0:00:31]} 19. Red1 {[%emt 0:00:57]} Be7 {[%emt 0:07:09]} 20. f3 {[%emt 0:03:54]} Rxd2 {[%emt 0:04:06]} 21. Rxd2 {[%emt 0:00:12]} Rd8 {[%emt 0:01:10]} 22. Rxd8+ {[%emt 0:04:23]} Qxd8 {[%emt 0:00:31]} 23. Nd3 {[%emt 0:06:54]} Qc7 {[%emt 0:11:42]} 24. Qe3 {[%emt 0:03:35]} Bd6 {[%emt 0:03:08]} 25. Kf2 {[%emt 0:06:59]} Ba8 {[%emt 0:02:01]} 26. b3 {[%emt 0:01:57]} Kf8 {[%emt 0:02:10]} 27. Be5 {[%emt 0:02:25]} Nd7 {[%emt 0:04:53]} 28. Bxd6+ {[%emt 0:01:35]} Qxd6 {[%emt 0:00:15]} 29. h3 {[%emt 0:01:37]} Ke7 {[%emt 0:02:39]} 30. Ne2 {[%emt 0:01:40]} Bb7 {[%emt 0:01:36]} 31. a3 {[%emt 0:01:05]} a5 {[%emt 0:01:28]} 32. Nc3 {[%emt 0:01:11]} Bc6 {[%emt 0:01:17]} 33. Nb5 {[%emt 0:01:05]} Bxb5 {[%emt 0:02:49]} 34. cxb5 {[%emt 0:00:02]} Qd4 {[%emt 0:01:45]} 35. Qxd4 {[%emt 0:01:18]} cxd4 {[%emt 0:00:05]} 36. b4 {[%emt 0:00:28]} a4 {[%emt 0:03:14]} 37. Ke2 {[%emt 0:00:59]} Kd6 {[%emt 0:00:30]} 38. f4 {[%emt 0:01:09]} f6 {[%emt 0:01:18]} 39. Nb2 {[%emt 0:00:22]} Nb6 {[%emt 0:00:14]} 40. Nd3 {[%emt 0:01:04]} e5 {[%emt 0:32:45]} 41. fxe5+ {[%emt 0:30:53]} fxe5 {[%emt 0:00:16]} 42. Nc5 {[%emt 0:00:40]} Kd5 {[%emt 0:00:52]} 43. Kd3 {[%emt 0:00:23]} Nc4 {[%emt 0:00:00]} 44. Nxa4 {[%emt 0:00:00]} e4+ {[%emt 0:00:00]} 45. Ke2 {[%emt 0:00:00]} d3+ {[%emt 0:00:00]} 46. Ke1 {[%emt 0:00:00]} Nxa3 {[%emt 0:00:00]} 47. b6 {[%emt 0:00:00]} Nc2+ {[%emt 0:00:00]} 48. Kd2 {[%emt 0:00:00]} Kd4 {[%emt 0:00:41]} 49. b7 {[%emt 0:00:00]} e3+ {[%emt 0:00:27]} 50. Kc1 {[%emt 0:00:00]} e2 {[%emt 0:00:16]} 51. b8=Q {[%emt 0:00:00]} e1=Q+ 52. Kb2 Qa1+ {[%emt 0:01:10]} 0-1

[Event "SVK Extraliga 2017-18"]
[Site "Slovakia"]
[Date "2017.12.10"]
[Round "6"]
[White "Trebula, Jozef"]
[Black "Takacs, Laszlo"]
[Result "1/2-1/2"]
[ECO "B41"]
[WhiteElo "2069"]
[BlackElo "2241"]
[Annotator "NA"]
[PlyCount "47"]
[EventDate "2017.??.??"]
[EventType "team-tourn"]
[EventCountry "SVK"]
[SourceTitle "playchess.com"]
[Source "ChessBase"]
[SourceQuality "1"]
[TimeControl "40/5400+30:1800+30"]

1. e4 {[%emt 0:00:00]} c5 {[%emt 0:00:08]} 2. Nf3 {[%emt 0:00:00]} e6 {[%emt 0:00:05]} 3. d4 {[%emt 0:00:00]} cxd4 {[%emt 0:00:06]} 4. Nxd4 {[%emt 0:00:04]} a6 {[%emt 0:00:15]} 5. Be2 {[%emt 0:02:14]} Nf6 {[%emt 0:01:07]} 6. Nc3 {[%emt 0:00:25]} Bb4 {[%emt 0:06:06]} 7. Qd3 {[%emt 0:06:24]} d5 {[%emt 0:07:02]} 8. exd5 {[%emt 0:03:20]} Nxd5 {[%emt 0:00:21]} 9. Bd2 {[%emt 0:08:30]} O-O {[%emt 0:06:13]} 10. O-O {[%emt 0:04:00]} Nf6 {[%emt 0:12:28]} 11. Rad1 {[%emt 0:08:22]} e5 {[%emt 0:02:12]} 12. Nb3 {[%emt 0:04:07]} Qxd3 {[%emt 0:00:10]} 13. Bxd3 {[%emt 0:01:14]} Nc6 {[%emt 0:00:32]} 14. Ne4 {[%emt 0:11:56]} Nd5 {[%emt 0:09:09]} 15. a3 {[%emt 0:08:32]} Bxd2 {[%emt 0:06:24]} 16. Rxd2 {[%emt 0:02:02]} Nf4 {[%emt 0:00:25]} 17. Re1 {[%emt 0:08:56]} Nxd3 {[%emt 0:01:13]} 18. Rxd3 {[%emt 0:00:36]} Bf5 {[%emt 0:03:09]} 19. Rd2 {[%emt 0:07:59]} Bxe4 {[%emt 0:04:45]} 20. Rxe4 {[%emt 0:00:12]} Rfd8 {[%emt 0:00:21]} 21. Kf1 {[%emt 0:03:18]} Kf8 {[%emt 0:08:21]} 22. Ke1 {[%emt 0:01:22]} Ke7 {[%emt 0:04:58]} 23. Rxd8 {[%emt 0:03:11]} Rxd8 {[%emt 0:02:53]} 24. Nc5 {[%emt 0:01:59]} 1/2-1/2